Departmental Area,Entity,Payment Date,Expense type,Expense Area,Supplier Name,Payment Reference,      Invoice Distribution Amount      ,Description,Supplier Type,Expenditure Type
UK Statistics Family,Office for National Statistics,01/11/2023,PPE - NON-PROPERTY (LEASED NON-PFI) - COST - ADDITIONS (AS LESSEE),IT Operations,Crown Hosting Data Centres Limited,282980,"63,074.06",Information Management Services,SME,Programme Expenditure
UK Statistics Family,Office for National Statistics,01/11/2023,Buildings Under Construction,Property Newport,Vinci Construction UK Limited,282982,"331,312.99",Facilities Mangement Services,Large,Programme Expenditure
UK Statistics Family,Office for National Statistics,01/11/2023,Capital Major Works >25K,Property Christchurch,Vinci Construction UK Limited,282982,"70,112.34",Facilities Mangement Services,Large,Programme Expenditure
UK Statistics Family,Office for National Statistics,01/11/2023,Exp - Purchase Of Goods/Services - Other Travel,CWT Trainline,Corporate Travel Management ,282986,"48,556.39",Travel and Accommodation,SME,Programme Expenditure
UK Statistics Family,Office for National Statistics,01/11/2023,Hosting,IT Operations,ITS Computing Limited,282987,"48,400.00",Information Management Services,Large,Programme Expenditure
UK Statistics Family,Office for National Statistics,01/11/2023,Exp - Seconded UK Staff - Basic Salary,Data Science Campus,Bank of England,282997,"3,594.73",Seconded Staff Costs,Large,Programme Expenditure
UK Statistics Family,Office for National Statistics,01/11/2023,Exp - Seconded UK Staff - Basic Salary,Data Science Campus,Bank of England,282997,"8,387.71",Seconded Staff Costs,Large,Programme Expenditure
UK Statistics Family,Office for National Statistics,01/11/2023,Exp - Seconded UK Staff - Basic Salary,Prices Division,Bank of England,282997,"14,430.79",Seconded Staff Costs,Large,Programme Expenditure
UK Statistics Family,Office for National Statistics,01/11/2023,Exp - Purchase Of Goods/Services - IT Contractual Services,CLOUD ARCHITECTURE,CTS (Cloud Technology Solutions Ltd),282998,"50,184.00",Information Management Services,Large,Programme Expenditure
UK Statistics Family,Office for National Statistics,01/11/2023,Hosting,CLOUD ARCHITECTURE,CTS (Cloud Technology Solutions Ltd),282998,"137,177.36",Information Management Services,Large,Programme Expenditure
UK Statistics Family,Office for National Statistics,01/11/2023,Exp - Purchase Of Goods/Services - IT Contractual Services,CDIO UNGP,CTS (Cloud Technology Solutions Ltd),282998,"81,000.00",Information Management Services,Large,Programme Expenditure
UK Statistics Family,Office for National Statistics,01/11/2023,Exp - Purchase Of Goods/Services - IT Contractual Services,CDIO UNGP,CTS (Cloud Technology Solutions Ltd),282998,"119,344.48",Information Management Services,Large,Programme Expenditure
UK Statistics Family,Office for National Statistics,01/11/2023,Exp - Purchase Of Goods/Services - IT Contractual Services,DATA ENGINEERING OPERATIONS AND DELIVERY,CTS (Cloud Technology Solutions Ltd),282998,"36,842.40",Information Management Services,Large,Programme Expenditure
UK Statistics Family,Office for National Statistics,01/11/2023,Surveys,Crime Statistics,Kantar Public UK Ltd.,283000,593112.12,Statistical Services,SME,Programme Expenditure
UK Statistics Family,Office for National Statistics,01/11/2023,Surveys,Crime Statistics,Kantar Public UK Ltd.,283000,"667,508.24",Statistical Services,SME,Programme Expenditure
UK Statistics Family,Office for National Statistics,01/11/2023,Surveys,Prices Division,Kantar Public UK Ltd.,283000,"4,343.37",Statistical Services,SME,Programme Expenditure
UK Statistics Family,Office for National Statistics,01/11/2023,EXP - PURCHASE OF GOODS/SERVICES - DATA ACQUISITION,Prices Division,Kantar Public UK Ltd.,283000,371798,Statistical Services,SME,Programme Expenditure
UK Statistics Family,Office for National Statistics,01/11/2023,Exp - Purchase Of Goods/Services - IT Contractual Services,IT Applications,Diegesis Limited,283003,185531.88,Information Management Services,Large,Programme Expenditure
UK Statistics Family,Office for National Statistics,01/11/2023,EXP - PURCHASE OF GOODS/SERVICES - DATA ACQUISITION,Data As A Service,Telefonica UK Limited,283004,71952,Data Acquisition,Large,Programme Expenditure
UK Statistics Family,Office for National Statistics,01/11/2023,Exp - Purchase Of Goods/Services - Incentive Payments,Interviewer Support,Pluxee UK Ltd,283005,"6,101.45",Survey Response Incentive Vouchers,Large,Programme Expenditure
UK Statistics Family,Office for National Statistics,01/11/2023,Exp - Purchase Of Goods/Services - Incentive Payments,Interviewer Support,Pluxee UK Ltd,283005,"5,101.68",Survey Response Incentive Vouchers,Large,Programme Expenditure
UK Statistics Family,Office for National Statistics,01/11/2023,Exp - Purchase Of Goods/Services - Incentive Payments,Interviewer Support,Pluxee UK Ltd,283005,"87,720.60",Survey Response Incentive Vouchers,Large,Programme Expenditure
UK Statistics Family,Office for National Statistics,01/11/2023,Exp - Purchase Of Goods/Services - Incentive Payments,Interviewer Support,Pluxee UK Ltd,283005,"20,344.96",Survey Response Incentive Vouchers,Large,Programme Expenditure
UK Statistics Family,Office for National Statistics,01/11/2023,Exp - Purchase Of Goods/Services - Incentive Payments,Strategy And Engagement,Pluxee UK Ltd,283005,98.68,Survey Response Incentive Vouchers,Large,Programme Expenditure
UK Statistics Family,Office for National Statistics,01/11/2023,Exp - Purchase Of Goods/Services - Contractors,IT Applications,Parity Resources Limited,283008,3900,Information Management Services,Large,Programme Expenditure
UK Statistics Family,Office for National Statistics,01/11/2023,Exp - Purchase Of Goods/Services - Contractors,IT Operations,Parity Resources Limited,283008,4800,Information Management Services,Large,Programme Expenditure
UK Statistics Family,Office for National Statistics,01/11/2023,Exp - Short-Term Contract & Agency Staff - Full Cost,Interviewer Management FiF,Parity Resources Limited,283008,"44,502.04",Information Management Services,Large,Programme Expenditure
UK Statistics Family,Office for National Statistics,01/11/2023,Exp - Purchase Of Goods/Services - Field Costs,Interviewer Management FiF,Parity Resources Limited,283008,"8,101.18",Information Management Services,Large,Programme Expenditure
UK Statistics Family,Office for National Statistics,01/11/2023,Exp - Short-Term Contract & Agency Staff - Full Cost,Interviewer Support,Parity Resources Limited,283008,315.55,Information Management Services,Large,Programme Expenditure
UK Statistics Family,Office for National Statistics,01/11/2023,Exp - Purchase Of Goods/Services - Field Costs,Interviewer Support,Parity Resources Limited,283008,22.80,Information Management Services,Large,Programme Expenditure
UK Statistics Family,Office for National Statistics,01/11/2023,Exp - Purchase Of Goods/Services - IT Contractual Services,Data Architecture,ANDigital Limited,283014,"23,604.00",Information Management Services,large,Programme Expenditure
UK Statistics Family,Office for National Statistics,01/11/2023,Exp - Purchase Of Goods/Services - IT Contractual Services,CDIO UNGP,ANDigital Limited,283014,"23,604.00",Information Management Services,large,Programme Expenditure
UK Statistics Family,Office for National Statistics,01/11/2023,Exp - Purchase Of Goods/Services - IT Contractual Services,Digital Delivery,ANDigital Limited,283014,"77,580.00",Information Management Services,large,Programme Expenditure
UK Statistics Family,Office for National Statistics,02/11/2023,Exp - Purchase Of Goods/Services - IT Contractual Services,CLOUD ARCHITECTURE,Ibm United Kingdom Ltd,283216,"40,335.36",Information Management Services,Large,Programme Expenditure
UK Statistics Family,Office for National Statistics,02/11/2023,Exp - Permanent UK Staff - PRP Voucher Payments,ONS Corporate Funds,Edenred (UK Group) Limited,283223,60700,Performance Reward Vouchers,Large,Programme Expenditure
UK Statistics Family,Office for National Statistics,02/11/2023,Exp - Purchase Of Goods/Services - IT Contractual Services,Digital Delivery,ANDigital Limited,283227,"59,844.00",Information Management Services,large,Programme Expenditure
UK Statistics Family,Office for National Statistics,03/11/2023,Exp - Purchase Of Goods/Services - Incentive Payments,Interviewer Support,Banner Group Ltd,283326,46438.2,Survey Response Incentive Items,SME,Programme Expenditure
UK Statistics Family,Office for National Statistics,03/11/2023,EXP - PURCHASE OF GOODS/SERVICES - DATA ACQUISITION,Prices Division,Mintel Group Ltd,283328,47439.69,Data Acquisition,Large,Programme Expenditure
UK Statistics Family,Office for National Statistics,03/11/2023,Exp - Purchase Of Goods/Services - IT Contractual Services,CDIO UNGP,ANDigital Limited,283331,"14,100.00",Information Management Services,large,Programme Expenditure
UK Statistics Family,Office for National Statistics,03/11/2023,Exp - Purchase Of Goods/Services - IT Contractual Services,Digital Delivery,ANDigital Limited,283331,"88,200.00",Information Management Services,large,Programme Expenditure
UK Statistics Family,Office for National Statistics,03/11/2023,Exp - Purchase Of Goods/Services - IT Contractual Services,Digital Delivery,ANDigital Limited,283331,"77,580.00",Information Management Services,large,Programme Expenditure
UK Statistics Family,Office for National Statistics,03/11/2023,Exp - Purchase Of Goods/Services - IT Contractual Services,IT Operations,Ibm United Kingdom Ltd,283335,"105,560.35",Information Management Services,Large,Programme Expenditure
UK Statistics Family,Office for National Statistics,03/11/2023,Exp - Purchase Of Goods/Services - Other Travel,CWT Trainline,Corporate Travel Management ,283337,"63,374.92",Travel and Accommodation,SME,Programme Expenditure
UK Statistics Family,Office for National Statistics,03/11/2023,Exp - Purchase Of Goods/Services - Postage,REPROGRAPHICS,Royal Mail Group Ltd,283341,"113,999.42",Postage,Large,Programme Expenditure
UK Statistics Family,Office for National Statistics,07/11/2023,Surveys,Crime Statistics,Kantar Public UK Ltd.,283587,"496,980.00",Statistical Services,SME,Programme Expenditure
UK Statistics Family,Office for National Statistics,07/11/2023,Exp - Purchase Of Goods/Services - Incentive Payments,Interviewer Support,Pluxee UK Ltd,283590,"28,506.42",Survey Response Incentive Vouchers,Large,Programme Expenditure
UK Statistics Family,Office for National Statistics,07/11/2023,Exp - Purchase Of Goods/Services - Incentive Payments,Interviewer Support,Pluxee UK Ltd,283590,"4,767.86",Survey Response Incentive Vouchers,Large,Programme Expenditure
UK Statistics Family,Office for National Statistics,08/11/2023,Training & Development,Business Assurance (OCP),Natcen Social Research,283708,"74,400.00",Training and Educational Services,Large,Programme Expenditure
UK Statistics Family,Office for National Statistics,08/11/2023,Capital Major Works >25K,Property Newport,Vinci Construction UK Limited,283710,"16,705.08",Facilities Mangement Services,Large,Programme Expenditure
UK Statistics Family,Office for National Statistics,08/11/2023,Major Works Over 25K,Property Newport,Vinci Construction UK Limited,283710,"77,432.68",Facilities Mangement Services,Large,Programme Expenditure
UK Statistics Family,Office for National Statistics,08/11/2023,Exp - Short-Term Contract & Agency Staff - Full Cost,Business Change Support,Concept Information Technology Ltd T/A Concept Resourcing,283711,"3,130.91",Information Management Services,Large,Programme Expenditure
UK Statistics Family,Office for National Statistics,08/11/2023,Exp - Short-Term Contract & Agency Staff - Full Cost,Business Change Support,Concept Information Technology Ltd T/A Concept Resourcing,283711,"3,133.13",Information Management Services,Large,Programme Expenditure
UK Statistics Family,Office for National Statistics,08/11/2023,Exp - Purchase Of Goods/Services - Contractors,CDIO UNGP,Concept Information Technology Ltd T/A Concept Resourcing,283711,"16,204.51",Information Management Services,Large,Programme Expenditure
UK Statistics Family,Office for National Statistics,08/11/2023,Exp - Short-Term Contract & Agency Staff - Full Cost,Public Sector And Households,Concept Information Technology Ltd T/A Concept Resourcing,283711,"5,272.50",Information Management Services,Large,Programme Expenditure
UK Statistics Family,Office for National Statistics,08/11/2023,Exp - Short-Term Contract & Agency Staff - Full Cost,Corporations,Concept Information Technology Ltd T/A Concept Resourcing,283711,"5,163.25",Information Management Services,Large,Programme Expenditure
UK Statistics Family,Office for National Statistics,08/11/2023,Exp - Short-Term Contract & Agency Staff - Full Cost,Business Outputs And Developments,Concept Information Technology Ltd T/A Concept Resourcing,283711,"1,054.50",Information Management Services,Large,Programme Expenditure
UK Statistics Family,Office for National Statistics,08/11/2023,Exp - Purchase Of Goods/Services - Other Travel,CWT Trainline,Corporate Travel Management ,283713,"40,507.28",Travel and Accommodation,SME,Programme Expenditure
UK Statistics Family,Office for National Statistics,08/11/2023,EXP - PURCHASE OF GOODS/SERVICES - DATA ACQUISITION,Prices Division,UK Finance,283720,"25,698.00",Data Acquisition,SME,Programme Expenditure
UK Statistics Family,Office for National Statistics,08/11/2023,Hosting,CLOUD ARCHITECTURE,Amazon Web Services Inc,283722,"622,226.76",Information Management Services,Large,Programme Expenditure
UK Statistics Family,Office for National Statistics,08/11/2023,Exp - Purchase Of Goods/Services - IT Contractual Services,IT Applications,CTS (Cloud Technology Solutions Ltd),283728,"102,577.92",Information Management Services,Large,Programme Expenditure
UK Statistics Family,Office for National Statistics,08/11/2023,Exp - Purchase Of Goods/Services - Contractors,IT Applications,Talent International,283732,"14,376.00",Information Management Services,SME,Programme Expenditure
UK Statistics Family,Office for National Statistics,08/11/2023,Exp - Purchase Of Goods/Services - Contractors,IT Operations,Talent International,283732,"17,999.76",Information Management Services,SME,Programme Expenditure
UK Statistics Family,Office for National Statistics,08/11/2023,Exp - Purchase Of Goods/Services - Contractors,DATA ENGINEERING OPERATIONS AND DELIVERY,Talent International,283732,"17,199.00",Information Management Services,SME,Programme Expenditure
UK Statistics Family,Office for National Statistics,09/11/2023,Exp - Purchase Of Goods/Services - Contractors,CDIO UNGP,Certes Computing Ltd,283843,"17,251.87",Information Management Services,SME,Programme Expenditure
UK Statistics Family,Office for National Statistics,09/11/2023,Exp - Purchase Of Goods/Services - Contractors,IT Applications,Certes Computing Ltd,283843,"17,160.72",Information Management Services,SME,Programme Expenditure
UK Statistics Family,Office for National Statistics,09/11/2023,Exp - Purchase Of Goods/Services - Contractors,Testing,La International,283844,"8,756.40",Information Management Services,SME,Programme Expenditure
UK Statistics Family,Office for National Statistics,09/11/2023,Exp - Purchase Of Goods/Services - Contractors,Data Architecture,La International,283844,"3,981.18",Information Management Services,SME,Programme Expenditure
UK Statistics Family,Office for National Statistics,09/11/2023,Exp - Purchase Of Goods/Services - Contractors,Strategy And Architecture,La International,283844,"24,643.20",Information Management Services,SME,Programme Expenditure
UK Statistics Family,Office for National Statistics,09/11/2023,Exp - Purchase Of Goods/Services - Contractors,IT Applications,La International,283844,"3,664.94",Information Management Services,SME,Programme Expenditure
UK Statistics Family,Office for National Statistics,09/11/2023,Exp - Purchase Of Goods And Services Consultants,Productivity Research And Professional Development,Kings College London,283850,"134,947.20",Statistical Services,Large,Programme Expenditure
UK Statistics Family,Office for National Statistics,09/11/2023,Exp - Purchase Of Goods/Services - Contractors,Data Architecture,LA FOSSE ASSOCIATES LIMITED,283855,"14,400.00",Information Management Services,Large,Programme Expenditure
UK Statistics Family,Office for National Statistics,09/11/2023,Exp - Purchase Of Goods/Services - Contractors,Digital Delivery,LA FOSSE ASSOCIATES LIMITED,283855,"17,640.00",Information Management Services,Large,Programme Expenditure
UK Statistics Family,Office for National Statistics,09/11/2023,Other Professional Services,Property Services,Cadline Ltd,283857,25200,Software Licenses,SME,Programme Expenditure
UK Statistics Family,Office for National Statistics,10/11/2023,Capital Major Works >25K,Property Newport,Vinci Construction UK Limited,283946,82494.64,Facilities Mangement Services,Large,Programme Expenditure
UK Statistics Family,Office for National Statistics,10/11/2023,Exp - Purchase Of Goods/Services - Incentive Payments,Interviewer Support,Pluxee UK Ltd,283952,"47,802.29",Survey Response Incentive Vouchers,Large,Programme Expenditure
UK Statistics Family,Office for National Statistics,13/11/2023,Exp - Purchase Of Goods And Services Consultants,Internal Audit,Ernst & Young LLP,284035,"26,940.00",Consultancy Services,Large,Programme Expenditure
UK Statistics Family,Office for National Statistics,14/11/2023,Exp - Purchase Of Goods/Services - Contractors,Consultancy Management,Malikshaw Interim & Executive,284286,"2,966.40",Information Management Services,SME,Programme Expenditure
UK Statistics Family,Office for National Statistics,14/11/2023,Exp - Short-Term Contract & Agency Staff - Full Cost,Census & Soc Methodology Dd,Malikshaw Interim & Executive,284286,"4,913.30",Information Management Services,SME,Programme Expenditure
UK Statistics Family,Office for National Statistics,14/11/2023,Exp - Purchase Of Goods/Services - Contractors,DATA ENGINEERING OPERATIONS AND DELIVERY,Malikshaw Interim & Executive,284286,"18,975.60",Information Management Services,SME,Programme Expenditure
UK Statistics Family,Office for National Statistics,14/11/2023,"ICT Outsourcing, Maintenance And Support",Finance,Accenture (UK) Limited,284288,"31,104.00",Consultancy Services,SME,Programme Expenditure
UK Statistics Family,Office for National Statistics,14/11/2023,Other Goods And Services,FAST STREAM RECHARGES - CABINET OFFICE,Cabinet Office,284296,"116,977.00",Fast Stream Services,Large,Programme Expenditure
UK Statistics Family,Office for National Statistics,14/11/2023,"ICT Outsourcing, Maintenance And Support",Researcher Support And Data Access ,Boxxe Ltd,284298,"74,160.00",Software Licenses,SME,Programme Expenditure
UK Statistics Family,Office for National Statistics,15/11/2023,Exp - Purchase Of Goods/Services - Other Travel,CWT Trainline,Corporate Travel Management ,284413,"31,166.00",Travel and Accommodation,SME,Programme Expenditure
UK Statistics Family,Office for National Statistics,15/11/2023,Other Goods And Services,FAST STREAM RECHARGES - CABINET OFFICE,Cabinet Office,284429,"92,809.00",Fast Stream Services,Large,Programme Expenditure
UK Statistics Family,Office for National Statistics,15/11/2023,Specialist User Software And Hardware,IT Operations,Boxxe Ltd,284430,"82,847.29",Software Licenses,SME,Programme Expenditure
UK Statistics Family,Office for National Statistics,16/11/2023,Exp - Purchase Of Goods/Services - Other Travel,CWT Trainline,Corporate Travel Management ,284530,"29,811.08",Travel and Accommodation,SME,Programme Expenditure
UK Statistics Family,Office for National Statistics,16/11/2023,Exp - Purchase Of Goods/Services - Postage,Survey Processing Centre,DHL Parcel Ltd,284531,"31,597.13",Postage,Large,Programme Expenditure
UK Statistics Family,Office for National Statistics,16/11/2023,Exp - Purchase Of Goods/Services - IT Contractual Services,CDIO UNGP,CTS (Cloud Technology Solutions Ltd),284535,"111,428.80",Information Management Services,Large,Programme Expenditure
UK Statistics Family,Office for National Statistics,16/11/2023,Exp - Purchase Of Goods And Services Consultants,Analysis Microdata And Engagement,Parity Resources Limited,284541,"1,317.00",Information Management Services,Large,Programme Expenditure
UK Statistics Family,Office for National Statistics,16/11/2023,Exp - Purchase Of Goods/Services - Contractors,Security Advisory,Parity Resources Limited,284541,"33,981.90",Information Management Services,Large,Programme Expenditure
UK Statistics Family,Office for National Statistics,16/11/2023,Exp - Purchase Of Goods/Services - Contractors,IT Applications,Parity Resources Limited,284541,3120,Information Management Services,Large,Programme Expenditure
UK Statistics Family,Office for National Statistics,16/11/2023,Exp - Purchase Of Goods And Services Consultants,INTEGRATED DATA STRATEGY AND DELIVERY,Deloitte,284546,"909,216.00",Consultancy Services,Large,Programme Expenditure
UK Statistics Family,Office for National Statistics,16/11/2023,Exp - Purchase Of Goods And Services Consultants,Population Statistics Div,Government Actuarys Dept,284548,"35,801.00",Actuarial Services,SME,Programme Expenditure
UK Statistics Family,Office for National Statistics,17/11/2023,Exp - Purchase Of Goods/Services - IT Contractual Services,Strategy And Architecture,Ibm United Kingdom Ltd,284626,"124,955.52",Information Management Services,Large,Programme Expenditure
UK Statistics Family,Office for National Statistics,17/11/2023,Exp - Purchase Of Goods/Services - Incentive Payments,Interviewer Support,Pluxee UK Ltd,284635,"27,352.52",Survey Response Incentive Vouchers,Large,Programme Expenditure
UK Statistics Family,Office for National Statistics,17/11/2023,Exp - Purchase Of Goods/Services - Incentive Payments,Interviewer Support,Pluxee UK Ltd,284635,98.69,Survey Response Incentive Vouchers,Large,Programme Expenditure
UK Statistics Family,Office for National Statistics,21/11/2023,Capital Major Works >25K,Property Newport,Vinci Construction UK Limited,284874,"25,695.61",Facilities Mangement Services,Large,Programme Expenditure
UK Statistics Family,Office for National Statistics,21/11/2023,Exp - Purchase Of Goods/Services - Postage,REPROGRAPHICS,Royal Mail Group Ltd,284879,"58,324.38",Postage,Large,Programme Expenditure
UK Statistics Family,Office for National Statistics,21/11/2023,Marketing & Media,Campaigns,M&C Saatchi UK Ltd,284884,"29,133.46",Marketing and Media Services,Large,Programme Expenditure
UK Statistics Family,Office for National Statistics,21/11/2023,Exp - Purchase Of Goods/Services - Telecoms,IT Operations,Cdw Limited,284885,"35,536.80",Information Management Services,Large,Programme Expenditure
UK Statistics Family,Office for National Statistics,22/11/2023,Surveys,Business Outputs And Developments,Iff Research,285046,"145,098.73",Statistical Services,Large,Programme Expenditure
UK Statistics Family,Office for National Statistics,23/11/2023,Exp - Purchase Of Goods/Services - Other Travel,CWT Trainline,Corporate Travel Management ,285178,"41,035.51",Travel and Accommodation,SME,Programme Expenditure
UK Statistics Family,Office for National Statistics,24/11/2023,Exp - Purchase Of Goods/Services - Incentive Payments,Interviewer Support,Pluxee UK Ltd,285287,"2,664.69",Survey Response Incentive Vouchers,Large,Programme Expenditure
UK Statistics Family,Office for National Statistics,24/11/2023,Exp - Purchase Of Goods/Services - Incentive Payments,Interviewer Support,Pluxee UK Ltd,285287,"2,147.86",Survey Response Incentive Vouchers,Large,Programme Expenditure
UK Statistics Family,Office for National Statistics,24/11/2023,Exp - Purchase Of Goods/Services - Incentive Payments,Interviewer Support,Pluxee UK Ltd,285287,"27,395.76",Survey Response Incentive Vouchers,Large,Programme Expenditure
UK Statistics Family,Office for National Statistics,24/11/2023,Exp - Purchase Of Goods/Services - Incentive Payments,Interviewer Support,Pluxee UK Ltd,285287,"10,894.31",Survey Response Incentive Vouchers,Large,Programme Expenditure
UK Statistics Family,Office for National Statistics,24/11/2023,Exp - Purchase Of Goods/Services - Incentive Payments,Interviewer Support,Pluxee UK Ltd,285287,775.83,Survey Response Incentive Vouchers,Large,Programme Expenditure
UK Statistics Family,Office for National Statistics,27/11/2023,EXP - PURCHASE OF GOODS/SERVICES - DATA ACQUISITION,Data As A Service,HMRC.,285414,"26,873.08",Data Acquisition,Large,Programme Expenditure
UK Statistics Family,Office for National Statistics,27/11/2023,Exp - Purchase Of Goods/Services - Telecoms,IT Operations,Bt Global Services,285415,"26,118.11",Telecommunications,Large,Programme Expenditure
UK Statistics Family,Office for National Statistics,28/11/2023,Exp - Purchase Of Goods/Services - Other Travel,CWT Trainline,Corporate Travel Management ,285605,"36,652.10",Travel and Accommodation,SME,Programme Expenditure
UK Statistics Family,Office for National Statistics,28/11/2023,End User Software And Hardware,IT Operations,Boxxe Ltd,285607,"3,919,827.02",Software Licenses,SME,Programme Expenditure
UK Statistics Family,Office for National Statistics,10/11/2023,Exp - Purchase Of Goods/Servcies - Stationery,Lodgecard,Royal Bank of Scotland,30004365,331.88,Multiple Procurement Card Purchases  - Stationery ,Large,Programme Expenditure
UK Statistics Family,Office for National Statistics,10/11/2023,Other Goods And Services,GPC,Royal Bank of Scotland,30004365,"44,441.22",Multiple Procurement Card Purchases - other goods/services  ,Large,Programme Expenditure
UK Statistics Family,Office for National Statistics,10/11/2023,Exp - Purchase Of Goods/Services - Other Travel,Car Hire,Royal Bank of Scotland,30004365,"16,267.75",Multiple Procurement Card Purchases - Car Hire  ,Large,Programme Expenditure
UK Statistics Family,Office for National Statistics,14/11/2023,Exp - Purchase Of Goods/Servcies - Stationery,Lodgecard,Royal Bank of Scotland,30004370,"2,003.42",Multiple Procurement Card Purchases  - Stationery ,Large,Programme Expenditure
UK Statistics Family,Office for National Statistics,14/11/2023,Other Goods And Services,GPC,Royal Bank of Scotland,30004370,"44,720.70",Multiple Procurement Card Purchases - other goods/services  ,Large,Programme Expenditure
UK Statistics Family,Office for National Statistics,14/11/2023,Specialist User Software And Hardware,CDIO UNGP,Cloudflare ,30004371,"158,230.93",Software Licenses,Large,Programme Expenditure
UK Statistics Family,Office for National Statistics,16/11/2023,Electricity,Property Newport,Edf Energy,30004375,"34,144.26",Utility Costs,Large,Programme Expenditure
UK Statistics Family,Office for National Statistics,16/11/2023,Electricity,Property Titchfield,Edf Energy,30004376,"27,715.26",Utility Costs,Large,Programme Expenditure
,,,,,,,"12,408,876.64",,,
